Cogmind - Beta 16.1 @@@ ROGUE MODE // 2026.04.23 @ 11:11:23 Player: The Overplayer Result: Destroyed by Y-54 Guardian with Flak Gun Performance ------------- Evolutions (3) 1500 Regions Visited (8) 1600 Robots Destroyed (79) 395 Value Destroyed (2468) 2468 Prototype IDs (26) 520 Alien Tech Used (0) 0 Bonus (1142) 1142 TOTAL SCORE: 7625 Bonus ------- High Alert Combat Kills 135 Follower Combat Kills 7 Entered Garrisons 200 Entered DSFs 500 Aligned with FarCom 300 Cogmind --------- Core Integrity 0/700 Matter 300/300 Energy 100/100 System Corruption 0% Temperature Cool (12) Movement Core (50) Location -7/Garrison Parts ------- > --- POWER (1) -------- (None) > --- PROPULSION (4) --- (None) > --- UTILITY (5) ------ Core Analyzer > --- WEAPON (3) ------- (None) > --- INVENTORY (5) ---- Improved Heat Sink Precision Assault Rifle Missile Launcher Peak State ------------ > --- POWER ------------ Improved Deuterium Engine > --- PROPULSION ------- Improved Gravmag System Improved Gravmag System Improved Gravmag System Improved Gravmag System > --- UTILITY ---------- Large Storage Unit Active Sensor Suite Transmission Jammer > --- WEAPON ----------- Precision Assault Rifle AWS/Gauss > --- INVENTORY -------- Improved Deuterium Engine Improved Deuterium Engine Improved Heat Sink Heavy Armor Plating Hardened Heavy Armor Plating Shock Absorption System Minigun Minigun Precision Assault Rifle Precision Assault Rifle Missile Launcher Missile Launcher Ripper [Rating: 82] Favorites ----------- Power Improved Ion Engine Engine Improved Ion Engine Propulsion Light Treads Treads Light Treads Leg Flexi-carbon Leg Hover Unit Improved Gravmag System Utility Heavy Armor Plating Device Cooling System Storage Large Storage Unit Processor Terrain Scan Processor Protection Heavy Armor Plating Weapon Precision Assault Rifle Energy Gun Medium Laser Ballistic Gun Precision Assault Rifle Launcher Grenade Launcher Impact Weapon Maul Slashing Weapon Ripper Build | -11 -10 -10 -10 -9 -8 -7 -7 -7 ------- Run | Yrd Mat Min Exi Min Mat Fac DSF Gar Slots Evolved 6 | . . . . . 4 2 . . Power . | . . . . . . . . . Propulsion 2 | . . . . . 1 1 . . Utility 3 | . . . . . 3 . . . Weapon 1 | . . . . . . 1 . . Parts Attached 64 | 6 4 10 1 4 23 2 8 6 Power 7 | 1 1 2 . . 1 . 1 1 Engine 7 | 1 1 2 . . 1 . 1 1 Core . | . . . . . . . . . Reactor . | . . . . . . . . . Propulsion 21 | 2 . 3 . 2 7 1 4 2 Treads 9 | 2 . 1 . . 5 1 . . Leg 6 | . . 2 . 2 2 . . . Wheel . | . . . . . . . . . Hover 6 | . . . . . . . 4 2 Flight . | . . . . . . . . . Utility 20 | 1 2 1 . 1 10 . 3 2 Device 9 | . 1 1 . 1 3 . 2 1 Storage 3 | 1 1 . . . 1 . . . Processor 3 | . . . . . 2 . . 1 Hackware . | . . . . . . . . . Protection 5 | . . . . . 4 . 1 . Artifact . | . . . . . . . . . Weapon 16 | 2 1 4 1 1 5 1 . 1 Energy Gun 5 | 2 1 . . 1 1 . . . Energy Cannon . | . . . . . . . . . Ballistic Gun 6 | . . 2 1 . 2 1 . . Ballistic Cannon . | . . . . . . . . . Launcher 3 | . . 2 . . . . . 1 Special Weapon . | . . . . . . . . . Impact Weapon 1 | . . . . . 1 . . . Slashing Weapon 1 | . . . . . 1 . . . Piercing Weapon . | . . . . . . . . . Special Melee Weapon . | . . . . . . . . . Unidentified Prototypes 3 | . . . . . 2 . 1 . Parts Lost 17 | . . 2 . 1 1 . . 13 Power 3 | . . 1 . . . . . 2 Propulsion 6 | . . . . . . . . 6 Utility 3 | . . . . . 1 . . 2 Weapon 5 | . . 1 . 1 . . . 3 Highest Loss Streak 10 | . . 2 . 1 1 . . 10 To Critical Strikes . | . . . . . . . . . Average Backups 10 | . 7 9 9 8 11 12 12 7 Power . | . 1 . . . . 1 1 . Propulsion 1 | . . 1 1 1 1 1 . . Utility 3 | . 1 3 5 4 3 4 3 2 Weapon 5 | . 3 4 3 3 6 6 6 3 Tool/Special . | . . . . . . . . . Unused Backups 25 | . 2 3 1 . 7 3 7 2 Power 2 | . . . . . . . 2 . Propulsion 1 | . . . . . 1 . . . Utility 8 | . . 1 . . 2 1 3 1 Weapon 14 | . 2 2 1 . 4 2 2 1 Tool/Special . | . . . . . . . . . Average Slot Usage (%) 88 | . 98 99 93 98 85 80 76 66 Engine 10 | . 14 13 14 14 9 7 7 5 Treads 15 | . 28 17 . . 18 26 19 . Leg 9 | . . 10 28 28 8 . . . Hover 2 | . . . . . . . 9 24 Device 8 | . 12 14 14 14 4 . 6 6 Storage 10 | . 14 14 14 14 9 7 7 3 Processor 1 | . . . . . 3 . . 2 Protection 7 | . . . . . 13 15 7 5 Energy Gun 5 | . 28 5 . 23 . . . . Ballistic Gun 13 | . . 17 21 2 16 22 16 7 Peak Build Rating 82 | 6 11 14 28 28 44 47 82 82 Average Rating 29 | 4 10 11 20 18 36 45 63 55 On Entrance 27 | . 6 11 14 28 18 37 47 82 Avg Prop Armor Cover (%) . | . . . . . . . . . Naked Turns . | . . . . . . . . . Heaviest Build 79 | 12 24 25 29 29 67 71 79 58 Greatest Support 90 | 40 40 40 30 30 62 90 90 40 Greatest Overweight (x) 4 | . . . . . 1 1 4 1 Average Overweight (x) . | . . . . . . . . . Largest Inventory Capacity 15 | 8 10 10 10 10 15 15 15 15 Average Capacity 11 | 6 8 10 10 10 14 15 15 9 Most Carried 15 | . 10 10 10 10 15 15 15 15 Average Carried 11 | . 7 9 9 9 13 14 14 7 Final Capacity 15 | 8 10 10 10 10 15 15 15 5 Final Carried 15 | . 10 10 10 10 15 15 15 3 Class Distribution -------------------- 42% | Mutant 36% | Scavenger-Mutant 7% | Scavenger-Skirmisher 5% | Tank 3% | Skirmisher Dominant Class ---------------- Mutant | -10/Materials Scavenger-Mutant | -10/Mines Mutant | -10/Exiles Scavenger-Mutant | -9/Mines Mutant | -8/Materials Tank | -7/Factory Skirmisher | -7/DSF Mutant | -7/Garrison Resources | -11 -10 -10 -10 -9 -8 -7 -7 -7 ----------- Run | Yrd Mat Min Exi Min Mat Fac DSF Gar Matter Collected 1700 | 244 56 260 . 71 827 . 127 115 Remotely . | . . . . . . . . . Salvage Created 3055 | . 295 107 . 180 1584 . 180 709 Parts 175 | . 15 11 . 13 103 . 17 16 Haulers Intercepted 3 | . 2 . . . 1 . . . Recyclers Shooed 1 | . . . . . 1 . . . Parts Field Recycled . | . . . . . . . . . Retrieved Matter . | . . . . . . . . . Parts Self-Destructed . | . . . . . . . . . Prevented . | . . . . . . . . . Parts Restored . | . . . . . . . . . Kills | -11 -10 -10 -10 -9 -8 -7 -7 -7 ------- Run | Yrd Mat Min Exi Min Mat Fac DSF Gar Combat Hostiles Destroyed 74 | . 4 13 . 9 32 . 3 13 Melee 11 | . . . . . . . . 11 Guns 55 | . 4 5 . 9 32 . 3 2 AOE 8 | . . 8 . . . . . . Classes Destroyed 12 | . 3 2 . . 5 . 2 . Worker 3 | . . . . . 3 . . . Hauler 3 | . 2 . . . 1 . . . Recycler 2 | . . . . . 2 . . . Watcher 3 | . 1 . . . 2 . . . Swarmer 24 | . . 6 . 7 10 . . 1 Grunt 28 | . 4 1 . 2 14 . . 7 Duelist 1 | . . . . . 1 . . . Sentry 10 | . . . . . 6 . . 4 Specialist 1 | . . . . . . . 1 . Hunter 3 | . . . . . 1 . 1 1 Heavy 1 | . . . . . . . 1 . Assembled 6 | . . 6 . . . . . . Best Kill Streak 8 | . 2 5 . 4 8 . 1 7 Combat Bots Only 7 | . 2 5 . 4 6 . 1 7 Max Kills in Single Turn 2 | . 1 2 . 2 2 . 1 2 Gunslinging 1 | . . . . 1 1 . . . Exploded 2 | . . 2 . . . . . . Melee 1 | . . . . . . . . 1 Uniques/NPCs Destroyed . | . . . . . . . . . Combat | -11 -10 -10 -10 -9 -8 -7 -7 -7 -------- Run | Yrd Mat Min Exi Min Mat Fac DSF Gar Hostile Shots Fired 646 | . 26 30 . 49 126 . 8 407 Missed 197 | . 2 10 . 14 25 . 3 143 Hits 449 | . 24 20 . 35 101 . 5 264 Melee 3 | . . 2 . . 1 . . . Projectile 446 | . 24 18 . 35 100 . 5 264 Critical Strikes 11 | . 2 1 . 2 5 . . 1 Damage Taken 4904 | . 321 368 . 304 1431 . 111 2369 Core 878 | . 67 23 . 41 47 . 51 649 Absorbed by Shields 149 | . . . . . . . . 149 Regen/Repaired (Parts) 700 | . . . . . 700 . . . Core Remaining (%) 79 | 100 . . . 47 91 . . . Volleys Fired 124 | . 19 18 . 13 71 . 3 . Largest 2 | . 2 2 . 2 2 . 1 . Hottest 130 | . 115 115 . 130 56 . 28 . Shots Fired 271 | . 38 31 . 30 149 . 17 6 Gun 260 | . 38 20 . 30 149 . 17 6 Cannon . | . . . . . . . . . Launcher 11 | . . 11 . . . . . . Special . | . . . . . . . . . Kinetic 188 | . . 10 . 6 149 . 17 6 Thermal 72 | . 38 10 . 24 . . . . Explosive 11 | . . 11 . . . . . . Electromagnetic . | . . . . . . . . . Robot Hit Streak 27 | . 8 5 . 7 27 . 15 5 Robot Miss Streak 3 | . 2 3 . 2 3 . 1 1 Penetration Max . | . . . . . . . . . Secondary Targets 10 | . 1 2 . 3 4 . . . Max Gunslinging Chain 1 | . 1 1 . 1 1 . . . Autonomous 33 | . . . . 5 7 . 14 7 Shots Hit Robots 238 | . 27 14 . 21 119 . 14 43 Core Hits 129 | . 16 16 . 10 61 . 6 20 Critical Kills 2 | . . . . . 2 . . . Critical Parts Destroyed 1 | . . . . . 1 . . . Critical Strikes 13 | . 2 1 . . 3 . . 7 Burn 3 | . 2 1 . . . . . . Destroy 3 | . . . . . 3 . . . Sever 7 | . . . . . . . . 7 Melee Attacks 52 | . . . . . 1 . . 51 Impact . | . . . . . . . . . Slashing 52 | . . . . . 1 . . 51 Piercing . | . . . . . . . . . Sneak Attacks . | . . . . . . . . . Combat Hostiles . | . . . . . . . . . Follow-up Attacks . | . . . . . . . . . Damage Inflicted 5586 | . 360 479 . 401 2458 . 321 1567 Guns 3835 | . 360 134 . 401 2448 . 321 171 Cannons . | . . . . . . . . . Explosions 345 | . . 345 . . . . . . Melee 1396 | . . . . . . . . 1396 Ramming 10 | . . . . . 10 . . . Kinetic 3128 | . . 28 . 160 2448 . 321 171 Thermal 707 | . 360 106 . 241 . . . . Explosive 345 | . . 345 . . . . . . Electromagnetic . | . . . . . . . . . Impact . | . . . . . . . . . Slashing 1396 | . . . . . . . . 1396 Piercing . | . . . . . . . . . Highest Corruption . | . . . . . . . . . Average Corruption . | . . . . . . . . . Corruption Purged . | . . . . . . . . . Corruption Blocked . | . . . . . . . . . Overload Shots . | . . . . . . . . . Overflow Damage 64 | . . 28 . . . . . 36 Projectiles . | . . . . . . . . . Explosions 28 | . . 28 . . . . . . Melee 36 | . . . . . . . . 36 Knockbacks . | . . . . . . . . . Impact . | . . . . . . . . . Kinetic . | . . . . . . . . . Secondary . | . . . . . . . . . Self-Inflicted Damage 131 | . . 131 . . . . . . Shots 6 | . . 6 . . . . . . Rammed 1 | . . . . . 1 . . . Targets Rammed 2 | . . . . . 2 . . . Kicked 1 | . . . . . 1 . . . Crushed . | . . . . . . . . . Highest Temperature 307 | . 25 4 . 90 307 . . 14 Average Temperature 62 | . 9 1 . 30 77 . . 5 Received Heat Transfer 1589 | . 225 42 . 27 567 . . 728 Effects 3 | . . . . . 3 . . . Energy Bleed 2 | . . . . . 2 . . . Interference 1 | . . . . . 1 . . . Siege Activations . | . . . . . . . . . Martial Activations . | . . . . . . . . . Shielding Activations . | . . . . . . . . . Robots Disrupted . | . . . . . . . . . Combat Hostiles . | . . . . . . . . . Robots Corrupted . | . . . . . . . . . Combat Hostiles . | . . . . . . . . . Parts Fried . | . . . . . . . . . Impact Corruptions . | . . . . . . . . . Robots Melted . | . . . . . . . . . Combat Hostiles . | . . . . . . . . . Parts Melted 6 | . 4 2 . . . . . . Heat Transferred 2072 | . 1184 333 . 555 . . . . Parts Sabotaged . | . . . . . . . . . Parts Stolen . | . . . . . . . . . Parts Stripped . | . . . . . . . . . Power Chain Reactions . | . . . . . . . . . Alert | -11 -10 -10 -10 -9 -8 -7 -7 -7 ------- Run | Yrd Mat Min Exi Min Mat Fac DSF Gar Maximum Alert Level 2 | . . . . . 2 1 1 2 Low Security (%) 80 | 100 100 100 . 100 70 76 96 29 Level 1 8 | . . . . . 12 23 3 20 Level 2 11 | . . . . . 17 . . 49 Level 3 . | . . . . . . . . . Level 4 . | . . . . . . . . . Level 5 . | . . . . . . . . . High Security . | . . . . . . . . . Max Security . | . . . . . . . . . Peak Influence 609 | . 70 84 . 116 491 217 217 609 Initial 217 | . . 5 . . 37 217 99 162 Average 116 | . 18 25 . 67 142 179 134 366 Influence Increases 2165 | . 122 241 . 236 881 5 118 562 Destroy 0b10 Robot/C 1380 | . 80 140 . 200 640 . 60 260 Destroy 0b10 Robot/NC 55 | . 15 . . . 40 . . . Destroy Leader 282 | . 26 30 . 30 156 . 10 30 Allied During Kill 5 | . . . . 5 . . . . Successful Hack 34 | . . 7 . . 22 5 . . Disable Machine 30 | . . 15 . . 15 . . . Destroy Structure 64 | . 1 49 . 1 8 . 3 2 Lose Combat Pursuer 315 | . . . . . . . 45 270 Influence Decreases 1571 | . 108 255 . 140 500 340 43 185 Entered New Map 426 | . . 9 . . 59 260 43 55 Time Decay 967 | . 108 238 . 130 411 80 . . Lost Part 158 | . . 8 . 10 10 . . 130 Lost Ally 20 | . . . . . 20 . . . Squads Dispatched 7 | . . . . . 6 . 1 . Investigation 1 | . . . . . 1 . . . Extermination . | . . . . . . . . . Reinforcement 2 | . . . . . 1 . 1 . Assault . | . . . . . . . . . Garrison 4 | . . . . . 4 . . . Intercept . | . . . . . . . . . Searches Triggered . | . . . . . . . . . Construction Impeded . | . . . . . . . . . Haulers Reinforced . | . . . . . . . . . Active Scanning Responses 1 | . . . . . . . . 1 Cargo Convoy Interrupts . | . . . . . . . . . Stealth | -11 -10 -10 -10 -9 -8 -7 -7 -7 --------- Run | Yrd Mat Min Exi Min Mat Fac DSF Gar Distress Signals 7 | . . . . . 7 . . . Communications Jammed . | . . . . . . . . . Distress Signals . | . . . . . . . . . Times Spotted 120 | . 6 16 . 10 45 . 2 41 Peak Tracking Total 24 | . 2 5 . 4 6 . 3 24 Tactical Retreats 11 | . . 1 . . . . 1 9 Traps | -11 -10 -10 -10 -9 -8 -7 -7 -7 ------- Run | Yrd Mat Min Exi Min Mat Fac DSF Gar Traps Triggered 4 | . . . . . . . . 4 Indirectly . | . . . . . . . . . Trap Hack Attempts . | . . . . . . . . . Triggered . | . . . . . . . . . Disarmed . | . . . . . . . . . Reprogrammed . | . . . . . . . . . Reused . | . . . . . . . . . Traps Extracted . | . . . . . . . . . Installed . | . . . . . . . . . Triggered . | . . . . . . . . . Machines | -11 -10 -10 -10 -9 -8 -7 -7 -7 ---------- Run | Yrd Mat Min Exi Min Mat Fac DSF Gar Machines Disabled 2 | . . 1 . . 1 . . . Max in Single Turn 1 | . . 1 . . 1 . . . Machines Repaired . | . . . . . . . . . Machines Dismantled . | . . . . . . . . . Machines Sabotaged . | . . . . . . . . . Overloaded Fab Kills . | . . . . . . . . . Hacking | -11 -10 -10 -10 -9 -8 -7 -7 -7 --------- Run | Yrd Mat Min Exi Min Mat Fac DSF Gar Machines Accessed 13 | . 1 1 2 . 8 1 . . Terminals 5 | . . 1 . . 3 1 . . Fabricators . | . . . . . . . . . Repair Stations 3 | . 1 . . . 2 . . . Recycling Units 1 | . . . . . 1 . . . Scanalyzers 1 | . . . . . 1 . . . Garrison Access 1 | . . . . . 1 . . . Total Hacks 36 | . 1 3 10 . 21 1 . . Successful 28 | . . 2 10 . 15 1 . . Failed 7 | . 1 1 . . 5 . . . Catastrophic 1 | . . . . . 1 . . . Database Lockouts 1 | . . . . . 1 . . . Manual 1 | . . . 1 . . . . . Terminals 9 | . . 3 . . 5 1 . . Fabricators . | . . . . . . . . . Repair Stations 9 | . 1 . . . 8 . . . Recycling Units 2 | . . . . . 2 . . . Scanalyzers 5 | . . . . . 5 . . . Garrison Access 1 | . . . . . 1 . . . Terminal Hacks 16 | . . 2 10 . 3 1 . . Record 11 | . . 2 9 . . . . . Open DSF 1 | . . . . . . 1 . . Branch Access Points 1 | . . . . . 1 . . . Dispatch Records 1 | . . . . . 1 . . . Zone Layout 1 | . . . . . 1 . . . Proto ID Catalog 1 | . . . 1 . . . . . Fabricator Hacks . | . . . . . . . . . Repair Station Hacks 6 | . . . . . 6 . . . Scan Component 3 | . . . . . 3 . . . Repair 3 | . . . . . 3 . . . Recycling Unit Hacks 2 | . . . . . 2 . . . Report Inventory 1 | . . . . . 1 . . . Retrieve Components 1 | . . . . . 1 . . . Scanalyzer 4 | . . . . . 4 . . . Retrieve Study 4 | . . . . . 4 . . . Garrison Access Hacks . | . . . . . . . . . Unauthorized Hacks . | . . . . . . . . . Terminals . | . . . . . . . . . Fabricators . | . . . . . . . . . Repair Stations . | . . . . . . . . . Recycling Units . | . . . . . . . . . Scanalyzers . | . . . . . . . . . Garrison Access . | . . . . . . . . . Data Cores Recovered . | . . . . . . . . . Used . | . . . . . . . . . Hacking Detections 8 | . 1 1 . . 6 . . . Full Trace Events 1 | . . . . . 1 . . . Feedback Events . | . . . . . . . . . Feedback Blocked . | . . . . . . . . . Robot Schematics Acquired . | . . . . . . . . . Robots Built . | . . . . . . . . . Authchips . | . . . . . . . . . Time . | . . . . . . . . . Total Robot Build Rating . | . . . . . . . . . Part Schematics Acquired . | . . . . . . . . . Parts Built . | . . . . . . . . . Authchips . | . . . . . . . . . Time . | . . . . . . . . . Total Part Build Rating . | . . . . . . . . . Part Studies Acquired 3 | . . . . . 3 . . . Parts Repaired 3 | . . . . . 3 . . . Time 114 | . . . . . 114 . . . Parts Recycled . | . . . . . . . . . Recycled Matter . | . . . . . . . . . Retrieved Matter . | . . . . . . . . . Retrieved Components 10 | . . . . . 10 . . . Parts Scanalyzed . | . . . . . . . . . Part Schematics Acquired . | . . . . . . . . . Parts Damaged . | . . . . . . . . . Bothacking | -11 -10 -10 -10 -9 -8 -7 -7 -7 ------------ Run | Yrd Mat Min Exi Min Mat Fac DSF Gar Used RIF Installer . | . . . . . . . . . Robots Hacked . | . . . . . . . . . Non-combat . | . . . . . . . . . Combat . | . . . . . . . . . Robot Hacks Applied . | . . . . . . . . . Relay Couplers Released . | . . . . . . . . . Fabnet Peak Effective % . | . . . . . . . . . Robots Rewired . | . . . . . . . . . Allies Hacked . | . . . . . . . . . Hacks Repelled . | . . . . . . . . . Allies | -11 -10 -10 -10 -9 -8 -7 -7 -7 -------- Run | Yrd Mat Min Exi Min Mat Fac DSF Gar Total Allies 1 | . . . . 1 . . . . Largest Group 1 | . . . . 1 1 . . . Highest-Rated Group 31 | . . . . 31 31 . . . Highest-Rated Ally 31 | . . . . 31 31 . . . Total Orders . | . . . . . . . . . Ally Attacks 9 | . . . . 5 4 . . . Total Damage 65 | . . . . 44 21 . . . Kills 1 | . . . . 1 . . . . Allies Corrupted . | . . . . . . . . . Allies Melted . | . . . . . . . . . Intel | -11 -10 -10 -10 -9 -8 -7 -7 -7 ------- Run | Yrd Mat Min Exi Min Mat Fac DSF Gar Active Infowar (turns) 581 | . . . . . 417 . 75 89 A.S.S. 164 | . . . . . . . 75 89 Terrain 417 | . . . . . 417 . . . Seismic 17 | . . . . . 17 . . . Jamming 158 | . . . . . . . 69 89 Robot Analysis Total . | . . . . . . . . . Derelict Logs Recovered 3 | . . 2 . 1 . . . . Drone Launches . | . . . . . . . . . Drone Recoveries . | . . . . . . . . . Exploration | -11 -10 -10 -10 -9 -8 -7 -7 -7 ------------- Run | Yrd Mat Min Exi Min Mat Fac DSF Gar Turns Passed 3999 | 71 438 631 378 269 1622 167 155 268 Spaces Moved 2027 | 42 226 390 308 180 587 82 92 120 Core 9 | 5 . . . . . . . 4 Treads 881 | 37 226 194 . . 295 82 47 . Legs 976 | . . 196 308 180 292 . . . Wheels . | . . . . . . . . . Hover 161 | . . . . . . . 45 116 Flight . | . . . . . . . . . Fastest Speed 48 | 50 160 120 120 120 100 156 98 48 Average Speed 145 | 146 160 139 120 120 175 186 130 80 Slowest Speed 260 | 160 160 160 120 120 240 235 260 106 Overloaded Moves . | . . . . . . . . . Propulsion Burnouts . | . . . . . . . . . Robots Hopped . | . . . . . . . . . Potential Cave-ins . | . . . . . . . . . Cave-ins Triggered . | . . . . . . . . . Exploration Rate (%) 39 | 3 38 68 61 39 54 2 66 21 Regions Visited 8 Branch Regions 3 Pre-discovered Areas . | . . . . . . . . . Known Exits Taken 2 | . . . . . 1 1 . . Unknown Exits Taken 5 | 1 1 1 1 1 . . . . Scrap Searched 2 | . . 1 . 1 . . . . Spaces Dug 3 | . . . . . 1 . . 2 Terrain Destroyed 82 | . . 66 . 2 6 . 6 2 Melee 3 | . . . . . 1 . . 2 Projectile 13 | . . . . 2 5 . 6 . AOE 66 | . . 66 . . . . . . Terrain Rammed . | . . . . . . . . . Walls Destroyed . | . . . . . . . . . Machines Disabled . | . . . . . . . . . Actions | -11 -10 -10 -10 -9 -8 -7 -7 -7 --------- Run | Yrd Mat Min Exi Min Mat Fac DSF Gar Total 2772 | 48 266 442 319 209 1047 97 130 214 Wait 300 | 1 . 4 . 3 292 . . . Move 2019 | 41 225 389 307 179 586 81 91 120 Hop . | . . . . . . . . . Pick Up 73 | . 13 8 5 4 30 6 7 . Fast Attach 29 | 6 . 2 . . 10 1 7 3 Attach 29 | . 1 1 1 3 14 2 2 5 Detach 9 | . . . . . 4 . 5 . Swap 26 | . 3 12 . 3 4 2 . 2 Drop 80 | . 5 8 6 4 33 5 15 4 Fire 124 | . 19 18 . 13 71 . 3 . Melee 52 | . . . . . 1 . . 51 Ram . | . . . . . . . . . Kick 1 | . . . . . 1 . . . Crush 1 | . . . . . 1 . . . Escape Stasis 29 | . . . . . . . . 29 Rewire . | . . . . . . . . . Trap . | . . . . . . . . . Miscellaneous . | . . . . . . . . . Route ------- -11/Scrapyard -10/Materials -10/Mines (discovered 3 exits: *Mat x2 / *Exi) -10/Exiles -9/Mines -8/Materials (discovered 4 exits: *Fac x3 / Sto) -7/Factory -7/DSF -7/Garrison History --------- Turn | Location | Event 5 | -11/Scrapyard | Discovered new exit (range 14) 72 | -11/Scrapyard | Entered Materials 320 | -10/Materials | Build established: Mutant 448 | -10/Materials | Discovered new exit (range 15) 510 | -10/Materials | Entered Mines 511 | -10/Mines | Assembled infested the area 516 | -10/Mines | Assisted by a Guerilla fighting off Assembled 694 | -10/Mines | Discovered new exit (range 6) 957 | -10/Mines | Build established: Scavenger-Mutant 1017 | -10/Mines | Identified exit to Materials 1075 | -10/Mines | Learned 2 Materials zone layouts 1136 | -10/Mines | Deemed a non-threat by the Exiles lab entrance 1136 | -10/Mines | Discovered new exit (range 5) 1141 | -10/Mines | Entered Exiles 1170 | -10/Exiles | Met 8R-AWN 1191 | -10/Exiles | Met EX-HEX 1223 | -10/Exiles | Met EX-BIN 1239 | -10/Exiles | Aligned with FarCom system 1240 | -10/Exiles | Given EX-Vault access code 1267 | -10/Exiles | Opened EX-Vault 1280 | -10/Exiles | Found AWS/Autocannon 1304 | -10/Exiles | Warned to stay clear of 0b10 Research branches 1332 | -10/Exiles | Found AWS/Gauss 1450 | -10/Exiles | Met EX-DEC 1506 | -10/Exiles | Discovered new exit (range 12) 1519 | -10/Exiles | Left Exiles lab with AWS/Gauss 1519 | -10/Exiles | Entered Mines 1632 | -9/Mines | Received a Mining Laser from a helpful Derelict 1634 | -9/Mines | Learned location of 2 exits from Materials 1702 | -9/Mines | A weapon hastily lodged in a ceiling crevice suddenly fell to the ground 1734 | -9/Mines | Discovered new exit (range 13) 1749 | -9/Mines | Core integrity fell below 50% 1788 | -9/Mines | Entered Materials 1788 | -8/Materials | Accompanied by 1 ally 1788 | -8/Materials | Evolved 4 slots: Propulsion x1, Utility x3 1789 | -8/Materials | Identified exit to Factory 1789 | -8/Materials | Identified exit to Storage 2093 | -8/Materials | Central database locked down 2714 | -8/Materials | Garrison activated, responded to threat 2893 | -8/Materials | Garrison activated, responded to threat 3011 | -8/Materials | Repaired Hvy. Armor Plating 3050 | -8/Materials | Repaired Hvy. Armor Plating 3096 | -8/Materials | Repaired Hvy. Armor Plating 3111 | -8/Materials | Build established: Mutant 3410 | -8/Materials | Entered Factory 3410 | -7/Factory | Evolved 2 slots: Propulsion x1, Weapon x1 3577 | -7/Factory | Identified exit to DSF 3577 | -7/Factory | Entered DSF 3612 | -7/DSF | Additional patrols routed to DSF 3657 | -7/DSF | Found Prototype Device 3657 | -7/DSF | Identified Active Sensor Suite 3714 | -7/DSF | Discovered new exit (range 14) 3731 | -7/DSF | Identified exit to Garrison 3732 | -7/DSF | Entered Garrison 3809 | -7/Garrison | AWS/Gauss suddenly broke down 3863 | -7/Garrison | Lost 3 parts (1p2n) 3977 | -7/Garrison | Core integrity fell below 50% 3991 | -7/Garrison | Core integrity fell below 20% 3994 | -7/Garrison | Destroyed 7 combat bots 4000 | -7/Garrison | Destroyed by Y-54 Guardian with Flak Gun Last Messages --------------- 03986_ Field strength at 88. 03987_ Field strength at 78. 03988_ Field strength at 58. 03989_ Field strength at 48. 03990_ Field strength at 42. 03991_ Field strength at 15. 03992_ Field strength at 9. 03993_ Field strength at 3. 03993_ Stasis field depleted. 03994_ Triggered Stasis Trap. 03994_ A bubble of rippling energy engulfs the area. 03994_ Field strength at 94. 03994_ Field strength at 88. 03995_ Field strength at 82. 03996_ Field strength at 76. 03996_ Ripper destroyed. 03997_ Field strength at 58. 03998_ Field strength at 52. 03999_ Field strength at 46. Map ----- +----------------------------------------------------+ | | | | | | | | | | | | | | | ?????????????????????????????????????????????????? | | ?????????????????????????????????????????????????? | | ?????????????????????????????????????????????????? | | ?????????????????????????????????????????????????? | | ?????????????????????????????????????????????????? | | ?????????????????????????????????????????????????? | | ?????????????????????????????????????????????????? | | ?????????????????????????????????????????????????? | | ?????????????????????????????????????????????????? | | ?????????????????????????????????????????????????? | | ?????????????????????????????????????????????????? | | ?????????????????????????????????????????????????? | | ?????????????????????????????????????????????????? | | ?????????????????????????????????????????????????? | | ?????????????????????????????????????????????????? | | ?????????????????????????????????????????????????? | | ????????????????????????#####????????????????????? | | ????????????????????#####= ?????????????????????? | | ????????????????????#![!#@#??????????????????????? | | ????????????????????#!=!#=#??????????????????????? | | ????????????????????#![!#Y###????????????????????? | | ?????????????????????#!##Y=*#????????????????????? | | ?????????????????????#%ggg*%#Y???????????????????? | | ?????????????????????####g[*#????????????????????? | | ????????????????????????#Y###????????????????????? | | ????????????????????????#Y#??????????????????????? | | ????????????????????????#g#??????????????????????? | | ????????????????????????#!#??????????????????????? | | ????????????????????????#[#??????????????????????? | | ????????????????????????#b#??????????????????????? | | ????????????????????????#g#??????????????????????? | | ????????????????????????# #??????????????????????? | | ????????????????????????#C#??????????????????????? | | ????????????????????????# ########### #??????????? | | ????????????????????????# ????????? | | ????????????????????????# ????????? | | ????????????????????????# ######### #??????????? | | ????????????????????????#" #?????????????????????? | | ????????????????????????#% #?????????????????????? | | ??????????????#?????????#" #?????????????????????? | | ??????????????# ??#####?# #?????????????????????? | | ??????????????# ?# ## #?????????????????????? | | ?????????????## ## ## ##????????????????????? | +----------------------------------------------------+ Best States ------------- Heat Dissipation 48 Energy Generation 18 Energy Capacity 290 Matter Stores 300 Matter Capacity 300 Sight Range 16 Robot Scan Range 20 Terrain Scan Range 16 Terrain Scan Density 85 Jamming Range 12 Armor Coverage 1200 Core Shielding 20 Melee Speed Boost 20 Evasion (%) 55 Targeting Accuracy 5 Core Analysis 6 Recoil Reduction 4 Item Schematics ----------------- None Robot Schematics ------------------ None Fabricated ------------ Nothing Repaired ---------- Hvy. Armor Plating | 10% | -8/Materials Hvy. Armor Plating | 26% | -8/Materials Hvy. Armor Plating | 30% | -8/Materials Studied --------- VSS Leg | -8/Materials | Hacked Carbon-fiber Leg | -8/Materials | Hacked Aluminum Leg | -8/Materials | Hacked Alien Tech Used ----------------- None Achievements -------------- Some Acronyms Are Better Than Others Challenges ------------ None Game ------ Seed MeleeDeflectorThrower Manual? 0 Play Time 00:45:43 Cumulative 63.4 hours Start 2026.04.17 @ 07:54:37 End 2026.04.23 @ 11:11:23 Sessions 3 Manual Loads 0 Difficulty Rogue Special Mode None Game No. 65 Rogue 65 Adventurer 0 Explorer 0 Win Type - Total 1 Types 1/0/0/0/0/0/0/0/0/0 Lore% 24 Gallery% 41 Achievement% 35 Wizard Run 0 Options --------- Layout 1 ASCII 0 Keyboard 0 Movement Mouse Keybinds 0 Fullscreen 1 Font 24/Smallcaps Map View 50x35 Zoom Use 0% Tactical HUD 1 Map Filters NONE Filters NONE Steam 1 RUN: 92254aa2-b36b-4015-b336-7411edf14621